Cogmind - Beta 12 X1 *** ADVENTURER MODE // 2022.08.07 @ 02:03:49 Player: Sardaukar Result: Destroyed by as-48870 with Assembled Rifle Performance ------------- Evolutions (0) 0 Regions Visited (2) 400 Robots Destroyed (25) 125 Value Destroyed (618) 618 Prototype IDs (4) 80 Alien Tech Used (0) 0 Bonus (0) 0 TOTAL SCORE: 1223 Bonus ------- None Cogmind --------- Core Integrity 0/250 Matter 255/300 Energy 45/100 System Corruption 2% Temperature Cool (0) Movement Walking (190) Ox1 Location -10/Mines Parts ------- > --- POWER (1) -------- (None) > --- PROPULSION (2) --- Aluminum Leg Aluminum Leg > --- UTILITY (2) ------ Large Storage Unit Large Storage Unit > --- WEAPON (2) ------- (None) > --- INVENTORY (15) --- Ion Engine Aluminum Leg Large Matter Pod (150) Structural Scanner Sensor Array Sensor Array Sensor Array Terrain Scanner Propulsion Shielding Medium Laser Small Laser Heavy Hammer Heavy Hammer Peak State ------------ > --- POWER ------------ Ion Engine > --- PROPULSION ------- Aluminum Leg Aluminum Leg > --- UTILITY ---------- Medium Storage Unit Propulsion Shielding > --- WEAPON ----------- Heavy Hammer Heavy Hammer > --- INVENTORY -------- Ion Engine Aluminum Leg Large Matter Pod Propulsion Shielding Medium Laser Small Laser Light EM Pulse Cannon Light EM Pulse Cannon [Rating: 10] Favorites ----------- Power Ion Engine Engine Ion Engine Propulsion Aluminum Leg Leg Aluminum Leg Utility Propulsion Shielding Device Structural Scanner Storage Large Storage Unit Protection Propulsion Shielding Weapon Heavy Hammer Energy Gun Medium Laser Energy Cannon Light EM Pulse Cannon Ballistic Gun Assault Rifle Impact Weapon Heavy Hammer Build | -11 -10 -10 ------- Run | Scr Mat Min Slots Evolved . | . . . Power . | . . . Propulsion . | . . . Utility . | . . . Weapon . | . . . Parts Attached 35 | 6 22 7 Power 6 | 1 5 . Engine 6 | 1 5 . Core . | . . . Reactor . | . . . Propulsion 9 | 2 5 2 Treads . | . . . Leg 9 | 2 5 2 Wheel . | . . . Hover . | . . . Flight . | . . . Utility 10 | 1 6 3 Device 2 | . 1 1 Storage 4 | 1 2 1 Processor . | . . . Hackware . | . . . Protection 4 | . 3 1 Artifact . | . . . Weapon 10 | 2 6 2 Energy Gun 3 | 1 2 . Energy Cannon 2 | . . 2 Ballistic Gun 1 | 1 . . Ballistic Cannon . | . . . Launcher . | . . . Special Weapon . | . . . Impact Weapon 4 | . 4 . Slashing Weapon . | . . . Piercing Weapon . | . . . Special Melee Weapon . | . . . Unidentified Prototypes . | . . . Parts Lost 6 | . 1 5 Power 2 | . 1 1 Propulsion 1 | . . 1 Utility 1 | . . 1 Weapon 2 | . . 2 Highest Loss Streak 5 | . 1 5 To Critical Strikes . | . . . Average Slot Usage (%) 97 | . 97 97 Engine 13 | . 13 13 Leg 27 | . 26 28 Device 2 | . . 13 Storage 14 | . 14 14 Protection 10 | . 13 . Energy Gun 5 | . 7 . Ballistic Gun 5 | . 6 . Impact Weapon 16 | . 13 25 Naked Turns . | . . . Heaviest Build 36 | 14 34 36 Greatest Support 20 | 20 20 20 Greatest Overweight (x) 7 | . 7 1 Average Overweight (x) . | . . . Largest Inventory Capacity 15 | 8 15 15 Average Capacity 11 | 6 10 15 Most Carried 15 | 5 15 15 Average Carried 8 | 2 7 14 Final Capacity 15 | 8 15 15 Final Carried 15 | . 15 13 Class Distribution -------------------- 100% | Mutant Dominant Class ---------------- Mutant | -10/Materials Mutant | -10/Mines Resources | -11 -10 -10 ----------- Run | Scr Mat Min Matter Collected 751 | 238 493 20 Remotely . | . . . Salvage Created 1016 | 67 903 46 Parts 39 | 3 36 . Haulers Intercepted 2 | . 2 . Recyclers Shooed 2 | . 2 . Parts Field Recycled . | . . . Retrieved Matter . | . . . Parts Self-Destructed . | . . . Prevented . | . . . Kills | -11 -10 -10 ------- Run | Scr Mat Min Combat Hostiles Destroyed 16 | . 15 1 Melee 4 | . 4 . Guns 8 | . 8 . Cannons 1 | . . 1 Classes Destroyed 7 | 1 4 2 Worker 1 | . . 1 Tunneler 2 | . 1 1 Hauler 2 | . 2 . Recycler 3 | 1 2 . Watcher 2 | . 2 . Grunt 15 | . 15 . Assembled 1 | . . 1 Best Kill Streak 5 | 1 5 1 Combat Bots Only 3 | . 3 1 Max Kills in Single Turn 1 | 1 1 1 Gunslinging . | . . . Exploded . | . . . Melee 1 | . 1 . Uniques/NPCs Destroyed . | . . . Combat | -11 -10 -10 -------- Run | Scr Mat Min Damage Taken 1234 | . 638 596 Core 250 | . 151 99 Absorbed by Shields . | . . . Redirected to Shielding 44 | . 44 . Core Remaining (%) 100 | 100 . . Volleys Fired 51 | 3 45 3 Largest 2 | 2 2 2 Hottest 112 | 70 70 112 Shots Fired 98 | 6 86 6 Gun 92 | 6 86 . Cannon 6 | . . 6 Launcher . | . . . Special . | . . . Kinetic 44 | 3 41 . Thermal 48 | 3 45 . Explosive . | . . . Electromagnetic 6 | . . 6 Robot Hit Streak 27 | 2 27 4 Robot Miss Streak 3 | 3 2 1 Penetration Max . | . . . Secondary Targets 1 | . 1 . Max Gunslinging Chain 1 | . 1 . Shots Hit Robots 106 | 3 97 6 Core Hits 36 | 2 31 3 Critical Kills 1 | . 1 . Critical Parts Destroyed 4 | . 3 1 Critical Strikes 9 | . 8 1 Burn 4 | . 4 . Smash 5 | . 4 1 Melee Attacks 28 | . 26 2 Impact 28 | . 26 2 Slashing . | . . . Piercing . | . . . Sneak Attacks 5 | . 3 2 Combat Hostiles . | . . . Follow-up Attacks 3 | . 3 . Damage Inflicted 2198 | 36 1893 269 Guns 1029 | 36 993 . Cannons 94 | . . 94 Explosions . | . . . Melee 1065 | . 890 175 Ramming 10 | . 10 . Kinetic 477 | 24 453 . Thermal 552 | 12 540 . Explosive . | . . . Electromagnetic 94 | . . 94 Impact 1065 | . 890 175 Slashing . | . . . Piercing . | . . . Highest Corruption 2 | . . 2 Average Corruption 2 | . . 2 Corruption Purged . | . . . Corruption Blocked . | . . . Overload Shots . | . . . Overflow Damage 359 | . 224 135 Projectiles . | . . . Explosions . | . . . Melee 359 | . 224 135 Knockbacks 2 | . 2 . Impact 2 | . 2 . Kinetic . | . . . Secondary . | . . . Self-Inflicted Damage . | . . . Shots . | . . . Rammed . | . . . Targets Rammed 2 | . 2 . Kicked 2 | . 2 . Crushed . | . . . Highest Temperature 237 | 18 181 237 Average Temperature 59 | 9 50 128 Received Heat Transfer 767 | . 507 260 Siege Activations . | . . . Robots Corrupted . | . . . Combat Hostiles . | . . . Parts Fried 4 | . 3 1 Impact Corruptions 16 | . 11 5 Robots Melted 1 | . 1 . Combat Hostiles 1 | . 1 . Parts Melted 2 | . 2 . Heat Transferred 1887 | 37 1850 . Parts Sabotaged . | . . . Parts Stolen . | . . . Parts Stripped . | . . . Power Chain Reactions . | . . . Missiles Intercepted . | . . . Alert | -11 -10 -10 ------- Run | Scr Mat Min Peak Influence 163 | 5 163 31 Initial 21 | . 2 21 Average 62 | 1 76 27 Maximum Alert Level . | . . . Low Security (%) 100 | 100 100 100 Level 1 . | . . . Level 2 . | . . . Level 3 . | . . . Level 4 . | . . . Level 5 . | . . . High Security . | . . . Max Security . | . . . Squads Dispatched 3 | . 3 . Investigation 3 | . 3 . Extermination . | . . . Reinforcement . | . . . Assault . | . . . Garrison . | . . . Intercept . | . . . Searches Triggered . | . . . Construction Impeded . | . . . Haulers Reinforced . | . . . Active Scanning Responses . | . . . Cargo Convoy Interrupts . | . . . Stealth | -11 -10 -10 --------- Run | Scr Mat Min Distress Signals . | . . . Communications Jammed . | . . . Distress Signals . | . . . Times Spotted 43 | . 26 17 Peak Tracking Total 13 | . 5 13 Tactical Retreats 7 | . 6 1 Traps | -11 -10 -10 ------- Run | Scr Mat Min Traps Triggered 3 | . 3 . Indirectly . | . . . Trap Hack Attempts . | . . . Triggered . | . . . Disarmed . | . . . Reprogrammed . | . . . Reused . | . . . Traps Extracted . | . . . Installed . | . . . Triggered . | . . . Machines | -11 -10 -10 ---------- Run | Scr Mat Min Machines Disabled . | . . . Max in Single Turn . | . . . Machines Sabotaged . | . . . Garrisons Compromised . | . . . Overloaded Fab Kills . | . . . Hacking | -11 -10 -10 --------- Run | Scr Mat Min Machines Accessed 10 | . 10 . Terminals 8 | . 8 . Fabricators . | . . . Repair Stations . | . . . Recycling Units 2 | . 2 . Scanalyzers . | . . . Garrison Access . | . . . Total Hacks 31 | . 31 . Successful 18 | . 18 . Failed 13 | . 13 . Catastrophic 1 | . 1 . Database Lockouts . | . . . Manual 16 | . 16 . Terminals 27 | . 27 . Fabricators . | . . . Repair Stations . | . . . Recycling Units 4 | . 4 . Scanalyzers . | . . . Garrison Access . | . . . Terminal Hacks 15 | . 15 . Part Schematic 1 | . 1 . Robot Analysis 3 | . 3 . Prototype ID Bank 2 | . 2 . Branch Access Points 1 | . 1 . Terminal Index 1 | . 1 . Recycling Unit Index 1 | . 1 . Alert Level 2 | . 2 . Unreport Threat 1 | . 1 . Locate Traps 1 | . 1 . Reinforcement Status 1 | . 1 . Registered Components 1 | . 1 . Fabricator Hacks . | . . . Repair Station Hacks . | . . . Recycling Unit Hacks 2 | . 2 . Retrieve Matter 1 | . 1 . Retrieve Components 1 | . 1 . Scanalyzer . | . . . Garrison Access Hacks . | . . . Unauthorized Hacks 1 | . 1 . Terminals . | . . . Fabricators . | . . . Repair Stations . | . . . Recycling Units 1 | . 1 . Tunnel 1 | . 1 . Scanalyzers . | . . . Garrison Access . | . . . Data Cores Recovered . | . . . Used . | . . . Hacking Detections 9 | . 9 . Full Trace Events 2 | . 2 . Feedback Events . | . . . Feedback Blocked . | . . . Robot Schematics Acquired . | . . . Robots Built . | . . . Authchips . | . . . Time . | . . . Total Robot Build Rating . | . . . Part Schematics Acquired 1 | . 1 . Parts Built . | . . . Authchips . | . . . Time . | . . . Total Part Build Rating . | . . . Parts Repaired . | . . . Time . | . . . Parts Recycled . | . . . Recycled Matter . | . . . Retrieved Matter 171 | . 171 . Retrieved Components 10 | . 10 . Parts Scanalyzed . | . . . Part Schematics Acquired . | . . . Parts Damaged . | . . . Bothacking | -11 -10 -10 ------------ Run | Scr Mat Min Used RIF Installer . | . . . Robots Hacked . | . . . Non-combat . | . . . Combat . | . . . Robot Hacks Applied . | . . . Relay Couplers Released . | . . . Fabnet Peak Effective % . | . . . Robots Rewired . | . . . Allies Hacked . | . . . Hacks Repelled . | . . . Allies | -11 -10 -10 -------- Run | Scr Mat Min Total Allies . | . . . Largest Group . | . . . Highest-Rated Group . | . . . Highest-Rated Ally . | . . . Total Orders . | . . . Ally Attacks . | . . . Total Damage . | . . . Kills . | . . . Allies Corrupted . | . . . Allies Melted . | . . . Intel | -11 -10 -10 ------- Run | Scr Mat Min Robot Analysis Total 3 | . 3 . Derelict Logs Recovered 1 | . . 1 Drone Launches . | . . . Drone Recoveries . | . . . Exploration | -11 -10 -10 ------------- Run | Scr Mat Min Turns Passed 1694 | 94 1271 329 Spaces Moved 863 | 72 640 151 Core 18 | 17 1 . Treads . | . . . Legs 845 | 55 639 151 Wheels . | . . . Hover . | . . . Flight . | . . . Fastest Speed 50 | 50 120 120 Average Speed 155 | 103 153 188 Slowest Speed 400 | 120 400 190 Overloaded Moves . | . . . Propulsion Burnouts . | . . . Robots Hopped . | . . . Cave-ins Triggered . | . . . Exploration Rate (%) 38 | 4 82 28 Regions Visited 2 Branch Regions 1 Pre-discovered Areas 2 | . 1 1 Known Exits Taken 1 | . 1 . Unknown Exits Taken 1 | 1 . . Scrap Searched 1 | . . 1 Spaces Dug . | . . . Terrain Destroyed . | . . . Melee . | . . . Projectile . | . . . AOE . | . . . Terrain Rammed . | . . . Walls Destroyed . | . . . Machines Disabled . | . . . Actions | -11 -10 -10 --------- Run | Scr Mat Min Total 1071 | 87 798 186 Wait 65 | . 46 19 Move 861 | 71 639 151 Hop . | . . . Pick Up 24 | 6 16 2 Fast Attach 11 | 1 10 . Attach 8 | 5 1 2 Detach . | . . . Swap 16 | . 11 5 Drop 10 | 1 7 2 Fire 51 | 3 45 3 Melee 23 | . 21 2 Ram . | . . . Kick 2 | . 2 . Crush . | . . . Escape Stasis . | . . . Rewire . | . . . Trap . | . . . Miscellaneous . | . . . Route ------- -11/Scrapyard -10/Materials (discovered 2 exits: [*Mat] / *Min) -10/Mines (discovered 1 exit: [*Mat]) History --------- Turn | Location | Event 5 | -11/Scrapyard | Discovered new exit (range 16) 95 | -11/Scrapyard | Entered Materials 222 | -10/Materials | Identified exit to Mines 315 | -10/Materials | Build established: Mutant 822 | -10/Materials | Core integrity fell below 50% 1092 | -10/Materials | Discovered new exit (range 5) 1366 | -10/Materials | Entered Mines 1368 | -10/Mines | Discovered new exit (range 15) 1369 | -10/Mines | Met a Derelict bent on vengeance 1478 | -10/Mines | Learned location of Recycling (-9) 1649 | -10/Mines | Assembled infested the area 1654 | -10/Mines | Assisted by a Guerilla fighting off Assembled 1683 | -10/Mines | Core integrity fell below 20% 1695 | -10/Mines | Destroyed by as-48870 with Assembled Rifle Last Messages --------------- 01669_ Critical hit (Burn: +80). 01669_ as-47302 misfires. 01671_ as-47302 destroyed. 01672_ as-62511 destroyed. 01673_ K-01 Serf collects debris. 01673_ Knocked back. 01677_ K-01 Serf collects debris. 01677_ K-01 Serf destroyed. 01679_ Lgt. EM Pulse Cannon destroyed. 01679_ as-82551 destroyed. 01680_ Ion Engine destroyed. 01682_ Lgt. EM Pulse Cannon destroyed. 01684_ K-01 Serf collects debris. 01686_ as-72030 sneak attacks. 01686_ K-01 Serf destroyed. 01687_ Lgt. Armor Plating destroyed. 01691_ as-01746 destroyed. 01692_ Aluminum Leg destroyed. 01692_ System corrupted by crushing effect (+2). 01692_ Knocked back. Map ----- +----------------------------------------------------+ | ??????????????????????????????????????????????? | | ??????????????????????????????????????????????? | | ??????????????????????#####???????????????????? | | ??????????????????????# ###???????????????????? | | ?????????????????????? #???????????????????? | | ??????????????????????# #???????????????????? | | ??????????????????????# ##???????????????????? | | ??##########??????????## ##???????????????????? | | ??## #######??????????## ##???????????????????? | | ??## ##??????????## ##???????????????????? | | ??### ### ##??????????## ##???????????????????? | | ???###### #######?????## ##???????????????????? | | ???????## #######?????## ##???????????????????? | | ???????## ##?????## ##???????????????????? | | ???????####### ##?????## ##???????????????????? | | ???????####### ##?????## ##???????????????????? | | ????????????## ##?????## ##???????????????????? | | ????????????## ##?????## ##???????????????????? | | ????????????## ##?????## ##????#######????????? | | ????????????## ##???####%###################### | | ????????????## ######### ######## ########### | | ????????????## ####### %! | | ????????????## ! % ########## | | ????????????########## ########% ########## | | ????????????########## ########### ##???????? | | ???????????????????###@ ###??#########???????? | | ???????????????????###a ##?????######???????? | | ???????????????????## ##??????????????????? | | ???????????????????## #######?????????????? | | ??????????????????### a ###########?????????? | | ?????????????????#### %% #### #######????????? | | ?????????????????### ### ###????????? | | ?????????????????## ##????????? | | ?????????????????## ##????????? | | ?????????????????### a = ## ????????? | | ?????????????????#### % %=####???#?????????? | | ??????????????????#### a ####??????????????? | | ???????????????????####a ###???????????????? | | ????????????????????### %= ##???????????????? | | ?????????????????????## =%! ##?###???????????? | | ?????????????????????## [=%!% ##???????????? | | ?????????????????????### #"# ##???????????? | | ?????????????????????########## ##???????? | | ??????????????????????########??? ##???????? | | ??????????????????????????????????? ##???????? | | ???????????????????????????????????? ##???????? | | ??????????????????????????????????????????????? | | ??????????????????????????????????????????????? | | ??????????????????????????????????????????????? | | ??????????????????????????????????????????????? | +----------------------------------------------------+ Best States ------------- Heat Dissipation 25 Energy Generation 10 Energy Capacity 250 Matter Stores 300 Matter Capacity 300 Sight Range 16 Robot Scan Range 14 Terrain Scan Density 10 Armor Coverage 150 Resistance: KI 20 Resistance: TH 20 Resistance: EX 20 Resistance: EM 20 Resistance: I 20 Resistance: S 20 Resistance: P 20 Propulsion Shielding 33 Evasion (%) 55 Offensive Hacking 10 Item Schematics ----------------- Lrg. Storage Unit | -10/Materials | Hacked Robot Schematics ------------------ None Fabricated ------------ Nothing Alien Tech Used ----------------- None Achievements -------------- None Challenges ------------ None Game ------ Seed ArcSurgeAnalyzer Manual? 0 Play Time 00:25:09 Cumulative 228.3 hours Start 2022.08.06 @ 19:59:11 End 2022.08.07 @ 02:03:49 Sessions 6 Manual Loads 0 Difficulty Adventurer Special Mode None Game No. 63 Rogue 0 Adventurer 57 Explorer 6 Win Type - Total 4 Types 3/0/1/0/0/0/0/0/0 Lore% 57 Gallery% 71 Achievement% 52 Wizard Run 0 Options --------- ASCII 0 Keyboard 0 Movement Mouse Keybinds 0 Fullscreen 2 Font 20/Terminus Map View 66x50 Tactical HUD 1 Map Filters NONE Filters NONE Steam 1 RUN: fa338d5a-3bc3-41b6-bb36-ff7643f5b07d